Cogmind - Beta 17 @@@ ROGUE MODE // 2026.07.18 @ 16:08:53 Player: Blaf Result: Destroyed by G-34 Mercenary with Small Laser Performance ------------- Evolutions (0) 0 Regions Visited (1) 200 Robots Destroyed (12) 60 Value Destroyed (167) 167 Prototype IDs (0) 0 Alien Tech Used (0) 0 Bonus (0) 0 TOTAL SCORE: 427 Bonus ------- None Cogmind --------- Core Integrity 0/250 Matter 281/300 Energy 125/125 System Corruption 0% Temperature Cool (10) Movement Walking (120) Location -10/Materials Parts ------- > --- POWER (1) -------- Light Ion Engine > --- PROPULSION (2) --- Aluminum Leg Aluminum Leg > --- UTILITY (2) ------ Small Storage Unit > --- WEAPON (2) ------- Assault Rifle Assault Rifle > --- INVENTORY (8) ---- Light Ion Engine Aluminum Leg Aluminum Leg Wheel Small Laser Beam Cannon Light Assault Rifle Peak State ------------ > --- POWER ------------ Ion Engine > --- PROPULSION ------- Aluminum Leg Aluminum Leg > --- UTILITY ---------- Small Storage Unit Terrain Scanner > --- WEAPON ----------- Assault Rifle Light Assault Rifle > --- INVENTORY -------- Light Ion Engine Wheel [Rating: 7] Favorites ----------- Power Light Ion Engine Engine Light Ion Engine Propulsion Aluminum Leg Leg Aluminum Leg Wheel Wheel Utility Small Storage Unit Device Terrain Scanner Storage Small Storage Unit Weapon Assault Rifle Energy Gun Small Laser Energy Cannon Beam Cannon Ballistic Gun Assault Rifle Build | -11 -10 ------- Run | Yrd Mat Slots Evolved . | . . Power . | . . Propulsion . | . . Utility . | . . Weapon . | . . Parts Attached 16 | 6 10 Power 3 | 1 2 Engine 3 | 1 2 Core . | . . Reactor . | . . Propulsion 5 | 2 3 Treads . | . . Leg 4 | 2 2 Wheel 1 | . 1 Hover . | . . Flight . | . . Utility 2 | 1 1 Device 1 | . 1 Storage 1 | 1 . Processor . | . . Hackware . | . . Protection . | . . Artifact . | . . Weapon 6 | 2 4 Energy Gun 1 | . 1 Energy Cannon 1 | . 1 Ballistic Gun 4 | 2 2 Ballistic Cannon . | . . Launcher . | . . Special Weapon . | . . Impact Weapon . | . . Slashing Weapon . | . . Piercing Weapon . | . . Special Melee Weapon . | . . Unidentified Prototypes . | . . Parts Lost 6 | . 6 Power 1 | . 1 Propulsion 2 | . 2 Utility 1 | . 1 Weapon 2 | . 2 Highest Loss Streak 3 | . 3 To Critical Strikes . | . . Average Backups 2 | . 2 Power . | . 1 Propulsion 1 | . 1 Utility . | . . Weapon . | . . Tool/Special . | . . Unused Backups 4 | . 4 Power 1 | . 1 Propulsion 2 | . 2 Utility . | . . Weapon 1 | . 1 Tool/Special . | . . Average Slot Usage (%) 89 | . 89 Engine 12 | . 12 Leg 21 | . 21 Wheel 3 | . 3 Device 12 | . 12 Storage 14 | . 14 Ballistic Gun 22 | . 22 Peak Build Rating 7 | 6 7 Average Rating 6 | 4 6 On Entrance 3 | . 6 Avg Prop Armor Cover (%) 11 | . 11 Naked Turns . | . . Heaviest Build 14 | 13 14 Greatest Support 20 | 20 20 Greatest Overweight (x) 1 | . 1 Average Overweight (x) . | . . Largest Inventory Capacity 8 | 8 8 Average Capacity 7 | 6 8 Most Carried 7 | 2 7 Average Carried 2 | . 2 Final Capacity 8 | 8 8 Final Carried 7 | 2 7 Class Distribution -------------------- 100% | Mutant Dominant Class ---------------- Mutant | -10/Materials Resources | -11 -10 ----------- Run | Yrd Mat Matter Collected 451 | 160 291 Remotely . | . . Salvage Created 278 | . 278 Parts 25 | . 25 Haulers Intercepted 1 | . 1 Recyclers Shooed 1 | . 1 Parts Field Recycled . | . . Retrieved Matter . | . . Parts Self-Destructed . | . . Prevented . | . . Parts Restored . | . . Kills | -11 -10 ------- Run | Yrd Mat Combat Hostiles Destroyed 7 | . 7 Guns 6 | . 6 Cannons 1 | . 1 Classes Destroyed 5 | . 5 Worker 2 | . 2 Hauler 1 | . 1 Watcher 2 | . 2 Swarmer 5 | . 5 Grunt 2 | . 2 Best Kill Streak 3 | . 3 Combat Bots Only 2 | . 2 Max Kills in Single Turn 1 | . 1 Gunslinging . | . . Exploded . | . . Melee . | . . Uniques/NPCs Destroyed . | . . Combat | -11 -10 -------- Run | Yrd Mat Hostile Shots Fired 113 | . 113 Missed 41 | . 41 Hits 72 | . 72 Projectile 72 | . 72 Critical Strikes 1 | . 1 Damage Taken 827 | . 827 Core 258 | . 258 Absorbed by Shields . | . . Regen/Repaired (Parts) 30 | . 30 Core Remaining (%) 100 | 100 . Volleys Fired 40 | . 40 Largest 2 | . 2 Hottest 100 | . 100 Shots Fired 69 | . 69 Gun 64 | . 64 Cannon 5 | . 5 Launcher . | . . Special . | . . Kinetic 60 | . 60 Thermal 9 | . 9 Explosive . | . . Electromagnetic . | . . Robot Hit Streak 9 | . 9 Robot Miss Streak 4 | . 4 Penetration Max . | . . Secondary Targets . | . . Shots Hit Robots 35 | . 35 Core Hits 18 | . 18 Critical Kills . | . . Critical Parts Destroyed . | . . Critical Strikes . | . . Melee Attacks . | . . Impact . | . . Slashing . | . . Piercing . | . . Sneak Attacks . | . . Combat Hostiles . | . . Follow-up Attacks . | . . Damage Inflicted 463 | . 463 Guns 393 | . 393 Cannons 70 | . 70 Explosions . | . . Melee . | . . Ramming . | . . Kinetic 370 | . 370 Thermal 93 | . 93 Explosive . | . . Electromagnetic . | . . Impact . | . . Slashing . | . . Piercing . | . . Highest Corruption . | . . Average Corruption . | . . Corruption Purged . | . . Corruption Blocked . | . . Overload Shots . | . . Overflow Damage . | . . Projectiles . | . . Explosions . | . . Melee . | . . Knockbacks . | . . Impact . | . . Kinetic . | . . Secondary . | . . Self-Inflicted Damage . | . . Shots . | . . Rammed . | . . Targets Rammed . | . . Kicked . | . . Crushed . | . . Highest Temperature 37 | . 37 Average Temperature 13 | . 13 Received Heat Transfer 363 | . 363 Siege Activations . | . . Martial Activations . | . . Shielding Activations . | . . Robots Disrupted . | . . Combat Hostiles . | . . Robots Corrupted . | . . Combat Hostiles . | . . Parts Fried . | . . Impact Corruptions . | . . Robots Melted . | . . Combat Hostiles . | . . Parts Melted . | . . Heat Transferred 198 | . 198 Parts Sabotaged . | . . Parts Stolen . | . . Parts Stripped . | . . Power Chain Reactions . | . . Alert | -11 -10 ------- Run | Yrd Mat Maximum Alert Level . | . . Low Security (%) 100 | 100 100 Level 1 . | . . Level 2 . | . . Level 3 . | . . Level 4 . | . . Level 5 . | . . High Security . | . . Max Security . | . . Peak Influence 175 | . 175 Initial . | . . Average 44 | . 46 Influence Increases 520 | . 520 Destroy 0b10 Robot/C 140 | . 140 Destroy 0b10 Robot/NC 25 | . 25 Destroy Leader 36 | . 36 Successful Hack 19 | . 19 Lose Combat Pursuer 300 | . 300 Influence Decreases 361 | . 361 Time Decay 301 | . 301 Lost Part 60 | . 60 Squads Dispatched 2 | . 2 Investigation 1 | . 1 Extermination . | . . Reinforcement 1 | . 1 Assault . | . . Garrison . | . . Intercept . | . . Searches Triggered . | . . Construction Impeded . | . . Haulers Reinforced . | . . Active Scanning Responses . | . . Cargo Convoy Interrupts . | . . Stealth | -11 -10 --------- Run | Yrd Mat Distress Signals 2 | . 2 Communications Jammed . | . . Distress Signals . | . . Times Spotted 38 | . 38 Peak Tracking Total 7 | . 7 Tactical Retreats 9 | . 9 Traps | -11 -10 ------- Run | Yrd Mat Traps Triggered 1 | . 1 Indirectly . | . . Trap Hack Attempts . | . . Triggered . | . . Disarmed . | . . Reprogrammed . | . . Reused . | . . Traps Extracted . | . . Installed . | . . Triggered . | . . Machines | -11 -10 ---------- Run | Yrd Mat Machines Disabled . | . . Max in Single Turn . | . . Machines Repaired . | . . Machines Dismantled . | . . Machines Sabotaged . | . . Overloaded Fab Kills . | . . Hacking | -11 -10 --------- Run | Yrd Mat Machines Accessed 3 | . 3 Terminals 1 | . 1 Fabricators . | . . Repair Stations 1 | . 1 Recycling Units 1 | . 1 Scanalyzers . | . . Garrison Access . | . . Total Hacks 7 | . 7 Successful 4 | . 4 Failed 3 | . 3 Catastrophic . | . . Database Lockouts . | . . Manual . | . . Terminals 2 | . 2 Fabricators . | . . Repair Stations 2 | . 2 Recycling Units 3 | . 3 Scanalyzers . | . . Garrison Access . | . . Terminal Hacks 1 | . 1 Zone Layout 1 | . 1 Fabricator Hacks . | . . Repair Station Hacks 2 | . 2 Scan Component 1 | . 1 Repair 1 | . 1 Recycling Unit Hacks 1 | . 1 Retrieve Components 1 | . 1 Scanalyzer . | . . Garrison Access Hacks . | . . Unauthorized Hacks . | . . Terminals . | . . Fabricators . | . . Repair Stations . | . . Recycling Units . | . . Scanalyzers . | . . Garrison Access . | . . Data Cores Recovered . | . . Used . | . . Hacking Detections 1 | . 1 Full Trace Events . | . . Feedback Events . | . . Feedback Blocked . | . . Robot Schematics Acquired . | . . Robots Built . | . . Authchips . | . . Time . | . . Total Robot Build Rating . | . . Part Schematics Acquired . | . . Parts Built . | . . Authchips . | . . Time . | . . Total Part Build Rating . | . . Part Studies Acquired . | . . Parts Repaired 1 | . 1 Time 26 | . 26 Parts Recycled . | . . Recycled Matter . | . . Retrieved Matter . | . . Retrieved Components 10 | . 10 Parts Scanalyzed . | . . Part Schematics Acquired . | . . Parts Damaged . | . . Bothacking | -11 -10 ------------ Run | Yrd Mat Used RIF Installer . | . . Robots Hacked . | . . Non-combat . | . . Combat . | . . Robot Hacks Applied . | . . Relay Couplers Released . | . . Fabnet Peak Effective % . | . . Robots Rewired . | . . Allies Hacked . | . . Hacks Repelled . | . . Allies | -11 -10 -------- Run | Yrd Mat Total Allies . | . . Largest Group . | . . Highest-Rated Group . | . . Highest-Rated Ally . | . . Total Orders . | . . Ally Attacks . | . . Total Damage . | . . Kills . | . . Allies Corrupted . | . . Allies Melted . | . . Intel | -11 -10 ------- Run | Yrd Mat Active Infowar (turns) 956 | . 956 Terrain 956 | . 956 Robot Analysis Total . | . . Derelict Logs Recovered . | . . Drone Launches . | . . Drone Recoveries . | . . Exploration | -11 -10 ------------- Run | Yrd Mat Turns Passed 1127 | 63 1064 Spaces Moved 888 | 49 839 Core 8 | 8 . Treads . | . . Legs 620 | 41 579 Wheels 260 | . 260 Hover . | . . Flight . | . . Fastest Speed 50 | 50 80 Average Speed 108 | 108 108 Slowest Speed 190 | 120 190 Overloaded Moves . | . . Propulsion Burnouts . | . . Robots Hopped . | . . Potential Cave-ins . | . . Cave-ins Triggered . | . . Exploration Rate (%) 37 | 3 72 Regions Visited 1 Branch Regions . Pre-discovered Areas . | . . Known Exits Taken . | . . Unknown Exits Taken 1 | 1 . Scrap Searched . | . . Spaces Dug . | . . Terrain Destroyed . | . . Melee . | . . Projectile . | . . AOE . | . . Terrain Rammed . | . . Walls Destroyed . | . . Machines Disabled . | . . Actions | -11 -10 --------- Run | Yrd Mat Total 986 | 56 930 Wait 30 | . 30 Move 887 | 48 839 Hop . | . . Pick Up 7 | 2 5 Fast Attach 14 | 6 8 Attach 3 | . 3 Detach 4 | . 4 Swap . | . . Drop 1 | . 1 Fire 40 | . 40 Melee . | . . Ram . | . . Kick . | . . Crush . | . . Escape Stasis . | . . Rewire . | . . Trap . | . . Miscellaneous . | . . Route ------- -11/Scrapyard -10/Materials (discovered 2 exits: [*Mat] / [*Min]) History --------- Turn | Location | Event 8 | -11/Scrapyard | Discovered new exit (range 16) 64 | -11/Scrapyard | Entered Materials 206 | -10/Materials | Discovered new exit (range 11) 317 | -10/Materials | Build established: Mutant 473 | -10/Materials | Repaired Aluminum Leg 733 | -10/Materials | Core integrity fell below 50% 769 | -10/Materials | Lost 3 parts (1p1n1w) 775 | -10/Materials | Core integrity fell below 20% 789 | -10/Materials | Discovered new exit (range 3) 1128 | -10/Materials | Destroyed by G-34 Mercenary with Small Laser Last Messages --------------- Retrieving 10 components... Lgt. Ion Engine Lgt. Ion Engine Flight Unit Flight Unit Flight Unit Lgt. Ion Engine Med. Matter Pod Lgt. Assault Rifle Flight Unit Wheel 01074_ Acquired Lgt. Assault Rifle. 01119_ K-01 Serf cleans the Electrolysis Chamber. 01120_ G-47 Trooper destroyed. 01121_ K-01 Serf cleans the Terminal. 01121_ K-01 Serf collects debris. 01127_ Terrain Scanner destroyed. 01128_ K-01 Serf destroyed. 01128_ K-01 Serf collects debris. Map ----- +----------------------------------------------------+ | ## # ########## ##### ##?# #?# | | ###########+##### #??# ### | | "#??# # ####+### | | T#??# """ """ # !! ### ##+##+## ## | | "#??# """ """ # !! ######### ## ## | | #?## """ """ # ! # # ## #? | | ##??# # ! # # ## #? | | ???############### # # ## ## | | ??????## # ###+#+## # ## #? | | ?????#?# # # ##?? # ##=[ ## | | #####??# =# # """#??###+#########/###### | | #??# + # """#??# *% | | " #### # # """#?## | | "T / """" # # #### | | #### """" # # """#??# ################ | | #??# """" # # """#??# ###????##???#??? | | ##??########### # ??????# k T###? ####?? | | #????##???????# # ?? ?#?# ###?? ???? | | #?#?????#?????# ########## #?#??! ???? | | #????##???????# #???? ????? | | #???????????#?# #???? ??#??? | | #?????????????# #?#??# #?????? | | ##??????#???#?# """ """ #?#??# #?? "?? | | #?????#?#????# """ """ ###### #?????? | | #????????#???# """ """ ###### #?? ??? | | T #???????#????# | @ #????? | | #????????##??# ! k % #?????? | | #????????????# gg *%= % #?#???# | | ######??????????## k ######g ####### | | ?????#???????????# ##???#! | | ???????????????#?# #????# % | | ?????????????????# ##???# r | | ????????????????## #????# ####k | | ?????????????????# ######+#### ##### ### # | | ?????????????????# ?# ==* #+#####+### # | | ????????????????## ?# "" """ # # + | | ???????????????# # "Y*""" # ! # # | | ??????????????### # ""=""" # # # | | ????????? T + *=! # """ """ + # | | ????????? # =""" # """ """ # | | ??????????#### ## # * """ # """ """ # | | ????????????????## ?# """ # # | | ?????????????????# ?# ! # # | | ?????????????????# ??#################### % | | ?????????????????# ????????????#??#?#???# ! = | | ????????????#????# ??????????????#????######+#=* ! | | ?????????????#???# ???????????????#???# # =!! | | ?????????????????# ???????????????????# # !! | | ??????????????????????????????????????# # =! | | ??????????????????????????????????????# !!! #!!= | +----------------------------------------------------+ Best States ------------- Heat Dissipation 25 Energy Generation 10 Energy Capacity 250 Matter Stores 300 Matter Capacity 300 Sight Range 16 Terrain Scan Range 14 Terrain Scan Density 10 Evasion (%) 55 Item Schematics ----------------- None Robot Schematics ------------------ None Fabricated ------------ Nothing Repaired ---------- Aluminum Leg | 66% | -10/Materials Studied --------- None Alien Tech Used ----------------- None Achievements -------------- None Challenges ------------ None Game ------ Seed GuidedHardcellBeacon Manual? 0 Play Time 00:10:39 Cumulative 24.4 hours Start 2026.07.18 @ 15:59:11 End 2026.07.18 @ 16:08:53 Sessions 1 Manual Loads 0 Difficulty Rogue Special Mode None Game No. 39 Rogue 39 Adventurer 0 Explorer 0 Win Type - Total 0 Types 0/0/0/0/0/0/0/0/0/0 Lore% 8 Gallery% 17 Achievement% 17 Wizard Run 0 Options --------- Layout 1 ASCII 0 Keyboard 1 Movement Arrows Keybinds 0 Fullscreen 1 Font 24/Smallcaps Map View 50x35 Zoom Use 0% Tactical HUD 1 Map Filters NONE Filters NONE Steam 1 RUN: ae011bbf-6929-486a-938d-091a0a22978d